[Event "ETCC Open 2023"]
[Site "Budva"]
[Date "2023.11.13"]
[Round "3.50"]
[White "Moroni, Luca Jr"]
[Black "Macovei, Andrei"]
[Result "1-0"]
[ECO "D41"]
[WhiteElo "2575"]
[BlackElo "2446"]
[Annotator "TA"]
[PlyCount "106"]
[EventDate "2023.11.10"]
[EventType "team-tourn"]
[EventCountry "MNE"]
[SourceTitle "playchess.com"]
[Source "ChessBase"]
[SourceQuality "1"]
[WhiteTeam "Italy"]
[BlackTeam "Moldova"]
[WhiteTeamCountry "ITA"]
[BlackTeamCountry "MDA"]
[TimeControl "40/5400+30:1800+30"]

{[%evp 20,106,22,0,0,19,12,-11,21,0,0,0,0,0,0,-33,-16,-29,0,0,0,0,0,0,0,-10,-2,-36,-36,-91,0,0,0,0,0,0,70,75,129,95,85,96,108,98,88,97,193,66,64,72,209,226,518,181,569,560,518,358,547,552,578,563,547,543,471,407,473,474,627,616,580,401,397,392,378,375,832,961,900,811,839,801,793,737,958,886,845,812,677]} 1. c4 {[%emt 0:00:03]} e6 {[%emt 0:00:12]} 2. Nc3 {[%emt 0:00:14]} d5 {[%emt 0:00:05]} 3. d4 {[%emt 0:00:05]} Nf6 {[%emt 0:00:09]} 4. cxd5 {[%emt 0:00:23]} Nxd5 {[%emt 0:00:05]} 5. e4 {[%emt 0:00:10]} Nxc3 {[%emt 0:00:02]} 6. bxc3 {[%emt 0:00:06]} c5 {[%emt 0:00:02]} 7. Nf3 {[%emt 0:00:27]} cxd4 {[%emt 0:00:07]} 8. cxd4 {[%emt 0:00:06]} Bb4+ {[%emt 0:00:03]} 9. Bd2 {[%emt 0:00:08]} Bxd2+ {[%emt 0:00:04]} 10. Qxd2 {[%emt 0:00:04]} O-O {[%emt 0:00:05]} 11. Rc1 {[%emt 0:00:20]} b6 {[%emt 0:01:58] D41: Queen's Gambit Declined: Semi-Tarrasch with 5 cxd5.} 12. Bd3 {[%emt 0:08:55]} Bb7 {[%emt 0:00:34]} 13. Qe3 {[%emt 0:01:51]} Nd7 {[%emt 0:00:05] The position is equal.} 14. e5 {[%emt 0:00:31]} Bxf3 {[%emt 0:00:12]} 15. Qxf3 {[%emt 0:01:22]} b5 {[%emt 0:00:07]} 16. O-O {[%emt 0:00:13]} (16. Bxb5 $2 Qa5+ 17. Qc3 Qxb5 $19) 16... b4 {[%emt 1:34:40]} 17. Rc6 {[%emt 0:01:14]} Nb6 {[%emt 0:00:00] [#]} 18. Rd6 $146 {[%emt 0:16:52]} ({Predecessor:} 18. Qe4 g6 19. Rd6 Qe7 20. Rc1 Nd5 21. Rcc6 Rac8 22. h4 Rxc6 23. Rxc6 Rd8 24. Bc4 {½-½ Moroni,L (2581)-Ganguly,S (2616) Sharjah Masters 5th 2022 (6)}) 18... Qe7 {[%emt 0:00:00]} 19. Rc1 {[%emt 0:05:16]} Rac8 {[%emt 0:00:00]} 20. Rc5 $40 {[%emt 0:05:16][%mdl 128] White mounts an attack.} g6 {[%emt 0:00:00]} 21. g3 {[%emt 0:10:29]} Rc7 {[%emt 0:00:00]} 22. h4 {[%emt 0:08:33][%cal Bh2h4,Bh4h5,Bh5h6][%mdl 32]} Rd7 {[%emt 0:00:00]} 23. Rcc6 {[%emt 0:11:16]} Rfd8 {[%emt 0:00:00][%cal Rd7d6]} 24. Rxd7 {[%emt 0:02:21]} ({Better is} 24. Qf4 $15) 24... Qxd7 {[%emt 0:00:00]} (24... Rxd7 $17 25. Qf4 Qd8) 25. h5 $11 {[%emt 0:04:38]} Nd5 {[%emt 0:00:00]} 26. Rc5 {[%emt 0:03:55]} Qe7 {[%emt 0:00:00]} 27. h6 {[%emt 0:04:29]} Qg5 {[%emt 0:00:00]} (27... Qf8 $11) 28. Bc4 $1 $14 {[%emt 0:03:04][%cal Rc4d5]} Ne7 {[%emt 0:00:00]} ({Black should play} 28... Nb6) 29. Qf6 {[%emt 0:04:51]} Qxf6 {[%emt 0:00:00]} 30. exf6 $16 {[%emt 0:00:02][%mdl 4096] Endgame KRB-KRN} Nf5 {[%emt 0:00:00] [#]} 31. g4 $1 {[%emt 0:02:02]} Nxh6 {[%emt 0:00:00]} 32. f3 {[%emt 0:00:09]} Kf8 {[%emt 0:00:00] [#]} (32... Kh8 $16 {was worth a try.}) 33. Rc7 {[%emt 0:03:17]} ({White should try} 33. d5 $1 $18 {[%cal Rd5e6]}) 33... g5 $1 $14 {[%emt 0:00:00]} 34. d5 {[%emt 0:00:08] White is more active.} exd5 {[%emt 0:00:00] [#] This move loses the game for Black.} (34... Ng8 $16) 35. Bxd5 $1 $18 {[%emt 0:00:01][%cal Oc7a7][%mdl 576] Rxa7! is the strong threat. Back Rank} Ke8 $2 {[%emt 0:00:00]} (35... a6 36. Ra7 Ng8) (35... a5 36. Bb3) 36. Re7+ {[%emt 0:00:18]} Kf8 {[%emt 0:00:00] [#]} 37. Rxa7 $1 {[%emt 0:00:06]} Ke8 {[%emt 0:00:00]} 38. Re7+ {[%emt 0:00:44]} Kf8 {[%emt 0:00:00] [#]} 39. Rb7 $1 {[%emt 0:00:26]} Ke8 {[%emt 0:00:00]} (39... Rc8 40. Rxb4) 40. Bc6+ {[%emt 0:02:18]} Kf8 {[%emt 0:00:00]} 41. Ba4 {[%emt 0:31:09]} (41. Rxb4 Ng8 $16) 41... Ra8 {[%emt 0:40:45] [#]} 42. Kf2 $1 {[%emt 0:01:22]} Ng8 {[%emt 0:00:00]} (42... b3 43. Bxb3) 43. Bb3 {[%emt 0:00:00]} (43. Rxb4 Nxf6 44. Bb3 Nd7 $16) 43... Nh6 {[%emt 0:00:00]} 44. Rxb4 {[%emt 0:00:00]} Ke8 {[%emt 0:00:00]} 45. Rb6 {[%emt 0:00:00] Dodges Ra6} Kd7 {[%emt 0:00:00]} 46. Kg3 {[%emt 0:00:00]} Ra5 {[%emt 0:00:00]} 47. f4 {[%emt 0:00:00]} gxf4+ $2 {[%emt 0:00:00]} (47... Rc5 48. fxg5 Rxg5) 48. Kxf4 {[%emt 0:00:00] White is clearly winning.} Kc7 {[%emt 0:00:00] Dodges Rb8} 49. Rb4 {[%emt 0:00:00]} Ng8 {[%emt 0:00:00]} 50. g5 {[%emt 0:00:00][%cal Bg4g5,Bg5g6,Bg6f7][%mdl 32]} ({Weaker is} 50. Bxf7 Nxf6 51. Rc4+ Kb7 $16) 50... h6 {[%emt 0:00:00]} 51. g6 {[%emt 0:00:00]} ({Inferior is} 51. Bxf7 hxg5+ 52. Kg3 Nxf6 $11) 51... Nxf6 {[%emt 0:00:00]} 52. gxf7 {[%emt 0:00:00]} ({Less strong is} 52. Bxf7 Nh5+ 53. Kf3 Ng7 $18) 52... Ra8 {[%emt 0:00:00]} 53. Kf5 {[%emt 0:00:00]} Nd7 {[%emt 0:00:00] Weighted Error Value: White=0.15 (very precise) /Black=0.32} 1-0

[Event "ETCC Open 2023"]
[Site "Budva"]
[Date "2023.11.13"]
[Round "3.51"]
[White "Bologan, Victor"]
[Black "Sonis, Francesco"]
[Result "1/2-1/2"]
[ECO "C50"]
[WhiteElo "2574"]
[BlackElo "2564"]
[Annotator "TA"]
[PlyCount "72"]
[EventDate "2023.11.10"]
[EventType "team-tourn"]
[EventCountry "MNE"]
[SourceTitle "playchess.com"]
[Source "ChessBase"]
[SourceQuality "1"]
[WhiteTeam "Moldova"]
[BlackTeam "Italy"]
[WhiteTeamCountry "MDA"]
[BlackTeamCountry "ITA"]
[TimeControl "40/5400+30:1800+30"]

{[%evp 9,72,8,22,8,11,0,5,0,0,-32,-25,-27,0,-9,19,-4,-1,-11,0,-9,0,-8,-4,-27,-27,-45,-44,-100,-98,-109,-116,-122,-33,-37,-33,-40,-33,-41,-40,-31,-47,-74,-72,-71,-52,-57,-57,-58,-13,-12,-26,-31,-12,-7,-10,-10,0,-21,-4,-4,0,0,0,0,0]} 1. e4 {[%emt 0:00:16]} e5 {[%emt 0:00:08]} 2. Nf3 {[%emt 0:00:08]} Nc6 {[%emt 0:00:07]} 3. Bc4 {[%emt 0:00:07]} Bc5 {[%emt 0:00:05]} 4. d3 {[%emt 0:00:12]} Nf6 {[%emt 0:00:07]} 5. Nc3 {[%emt 0:00:05]} a6 {[%emt 0:03:08]} 6. a4 {[%emt 0:02:49] C50: Hungarian Defence and Giuoco Pianissimo.} d6 {[%emt 0:00:28][%cal Bd7d6,Bd6d5][%mdl 32]} 7. h3 {[%emt 0:00:28]} Be6 {[%emt 0:01:11]} 8. Bxe6 {[%emt 0:09:30]} fxe6 {[%emt 0:00:05] [#]} 9. Be3 $146 {[%emt 0:00:04]} ({Predecessor:} 9. O-O O-O 10. Be3 Nd4 11. Ng5 Qe8 12. Ne2 h6 13. Bxd4 exd4 14. Nf3 e5 15. Ng3 {0-1 Kominek,M (1685)-Zadrapa,J (1914) Valasska Bystrice op 2023 (4)}) 9... Bxe3 {[%emt 0:19:13]} 10. fxe3 {[%emt 0:00:05]} O-O {[%emt 0:00:05]} 11. O-O {[%emt 0:00:03]} d5 {[%emt 0:01:08]} 12. Qe1 {[%emt 0:02:52]} Qd6 {[%emt 0:09:02]} 13. Qh4 {[%emt 0:08:40]} h6 {[%emt 0:08:51]} 14. Rf2 {[%emt 0:08:25]} Rf7 {[%emt 0:05:52]} 15. exd5 {[%emt 0:27:19]} exd5 {[%emt 0:00:17]} 16. a5 {[%emt 0:04:03]} Qc5 {[%emt 0:09:09]} 17. d4 {[%emt 0:04:59]} Qb4 {[%emt 0:03:11]} 18. dxe5 {[%emt 0:06:16]} (18. Raf1 $15) 18... Qxb2 $17 {[%emt 0:01:54]} 19. Rd1 {[%emt 0:01:37] [#] Strongly threatening Na4.} Qxc3 {[%emt 0:03:05]} 20. exf6 {[%emt 0:00:14]} Qxf6 {[%emt 0:12:52]} ({But not} 20... Qxe3 $6 21. fxg7 Kxg7 22. Rxd5 $11) (20... Rxf6 $17 21. Rxd5 Qxe3) 21. Qxf6 $15 {[%emt 0:03:10]} Rxf6 {[%emt 0:00:03]} 22. Rxd5 {[%emt 0:00:05]} Rd6 {[%emt 0:02:47]} 23. Rc5 {[%emt 0:04:15]} Re8 {[%emt 0:01:34]} 24. Rf1 {[%emt 0:05:19]} b6 {[%emt 0:03:34]} 25. axb6 {[%emt 0:00:10]} cxb6 {[%emt 0:00:07]} 26. Rc3 {[%emt 0:00:05]} Nb4 {[%emt 0:00:20]} 27. Rc4 {[%emt 0:03:45]} a5 {[%emt 0:01:16]} 28. e4 {[%emt 0:02:57]} Rc6 {[%emt 0:02:20]} (28... Rde6 $5 {[%cal Re6e4]} 29. e5 Rc6 30. Rxc6 Nxc6 $15) 29. Rxc6 {[%emt 0:00:08]} Nxc6 $11 {[%emt 0:00:05][%mdl 4096] Endgame KRN-KRN} 30. Rb1 {[%emt 0:00:05]} Rxe4 {[%emt 0:00:36] [#] ...Rb4 would be deadly.} 31. Rxb6 {[%emt 0:00:49] The position is equal.} Rc4 {[%emt 0:00:05]} 32. Ne1 {[%emt 0:00:36]} Nb4 {[%emt 0:00:31]} 33. Rb8+ {[%emt 0:01:21]} Kh7 {[%emt 0:00:39]} (33... Kf7 $5 {[%cal Rb4c2]}) 34. Ra8 {[%emt 0:00:16]} Nxc2 {[%emt 0:00:47]} 35. Nxc2 {[%emt 0:00:05]} Rxc2 {[%emt 0:00:03]} 36. Rxa5 {[%emt 0:00:05]} Rc1+ {[%emt 0:00:05] Weighted Error Value: White=0.11 (very precise) /Black=0.14 (very precise)} 1/2-1/2

[Event "ETCC Open 2023"]
[Site "Budva"]
[Date "2023.11.13"]
[Round "3.52"]
[White "Dvirnyy, Danyyil"]
[Black "Iordachescu, Viorel"]
[Result "1-0"]
[ECO "A46"]
[WhiteElo "2495"]
[BlackElo "2586"]
[Annotator "TA"]
[PlyCount "81"]
[EventDate "2023.11.10"]
[EventType "team-tourn"]
[EventCountry "MNE"]
[SourceTitle "playchess.com"]
[Source "ChessBase"]
[SourceQuality "1"]
[WhiteTeam "Italy"]
[BlackTeam "Moldova"]
[WhiteTeamCountry "ITA"]
[BlackTeamCountry "MDA"]
[TimeControl "40/5400+30:1800+30"]

{[%evp 9,81,15,22,25,14,18,9,16,29,30,43,56,47,51,54,39,32,27,68,70,74,47,73,67,84,66,58,54,45,38,42,46,49,44,45,37,222,214,231,254,244,237,222,181,192,191,116,109,106,106,566,566,566,566,1245,566,566,561,554,552,551,446,429,436,809,718,1512,1694,1277,1254,1641,715,1377,1281]} 1. d4 {[%emt 0:00:05]} Nf6 {[%emt 0:00:45]} 2. Nf3 {[%emt 0:00:12]} e6 {[%emt 0:00:27]} 3. g3 {[%emt 0:00:36]} b5 {[%emt 0:01:26]} 4. Bg2 {[%emt 0:01:33]} d5 {[%emt 0:00:50]} 5. O-O {[%emt 0:01:41]} Bb7 {[%emt 0:01:06]} 6. a4 {[%emt 0:02:36] A46: 1 d4 Nf6 2 Nf3 e6: Torre, London and Colle Systems.} b4 {[%emt 0:02:36] [#]} 7. c4 $1 {[%emt 0:01:21]} bxc3 {[%emt 0:06:39]} 8. Nxc3 {[%emt 0:04:25] The position is equal.} Be7 {[%emt 0:06:01]} 9. Bf4 {[%emt 0:04:45]} c6 {[%emt 0:14:06]} 10. a5 {[%emt 0:07:55] [#]} O-O $146 {[%emt 0:02:24]} ({Predecessor:} 10... Ba6 11. Qa4 O-O 12. Ne5 Qc8 13. b4 Nfd7 14. Rfc1 Nxe5 15. Bxe5 Qb7 16. Rcb1 Bb5 17. Nxb5 cxb5 {½-½ Samunenkov,I (2209)-Pantzar,M (2421) Titled Tuesday intern op 30th Mar blitz 2021 (11)}) 11. Qa4 {[%emt 0:05:14]} Nh5 {[%emt 0:12:33]} 12. Bd2 {[%emt 0:05:30]} Na6 {[%emt 0:01:46]} 13. Rfc1 {[%emt 0:09:56][%cal Ob2b4]} Rb8 {[%emt 0:07:16]} 14. Ne5 {[%emt 0:03:01]} Rc8 {[%emt 0:09:06]} 15. Na2 {[%emt 0:02:21]} c5 {[%emt 0:02:20]} 16. Qb5 {[%emt 0:01:03]} Rc7 {[%emt 0:01:19]} 17. b4 {[%emt 0:05:45][%cal Rb4c5]} cxd4 {[%emt 0:08:10]} 18. Bf3 {[%emt 0:04:51]} Nf6 {[%emt 0:03:27]} 19. Rxc7 {[%emt 0:02:20]} Qxc7 {[%emt 0:00:07]} 20. Rc1 $36 {[%emt 0:00:51][%mdl 2048] White has the initiative.} Qb8 {[%emt 0:01:51]} (20... Qxe5 $2 21. Bf4 $18) 21. Nc6 {[%emt 0:00:57]} Bxc6 {[%emt 0:06:17]} 22. Qxc6 {[%emt 0:00:14]} Nc5 {[%emt 0:05:17]} 23. bxc5 $18 {[%emt 0:02:36] Nb4 would be deadly.} Qb2 {[%emt 0:00:05]} 24. Bf4 {[%emt 0:01:38]} Qxa2 {[%emt 0:00:32]} 25. Qb7 $1 {[%emt 0:00:34][%csl LRa7,LRe7]} e5 {[%emt 0:04:34]} 26. Qxe7 {[%emt 0:12:34]} exf4 {[%emt 0:00:03]} 27. c6 $1 {[%emt 0:00:08]} (27. Qxa7 $6 Qd2 28. Rf1 d3 29. exd3 Qxd3 $14) 27... Qd2 {[%emt 0:00:28]} 28. Rc5 {[%emt 0:02:16]} Re8 {[%emt 0:00:07] Prevents c7.} 29. Qd6 {[%emt 0:03:01] aiming for c7.} (29. Qxa7 d3 30. exd3 fxg3 $17) 29... Ne4 $2 {[%emt 0:01:54][%mdl 8192]} (29... Qe1+ $2 30. Kg2 d3 31. exd3 $18 (31. Qxf4 $2 dxe2 32. Bxe2 Qxe2 $19)) (29... fxg3 $16 30. hxg3 d3 31. exd3 Re1+ 32. Kg2 Qxd3 33. Qd8+ Ne8) 30. Bxe4 {[%emt 0:00:38] White is clearly winning.} dxe4 {[%emt 0:00:08][%mdl 4096] Endgame [#] KQR-KQR} 31. Re5 $1 {[%emt 0:05:09][%cal Re5e8]} Qc1+ {[%emt 0:01:29]} 32. Kg2 {[%emt 0:00:04][%cal Re5e8]} f3+ {[%emt 0:00:05]} 33. exf3 {[%emt 0:00:39]} exf3+ {[%emt 0:00:08]} 34. Kxf3 {[%emt 0:01:15][%cal Re5e8]} Qh1+ {[%emt 0:00:21] [#]} 35. Ke2 $1 {[%emt 0:02:14][%cal Re5e8]} Rf8 {[%emt 0:01:34]} 36. c7 {[%emt 0:01:57][%cal Od6f8]} (36. Qxd4 Qxc6 37. Qxa7 Qc4+ 38. Kf3 Qc6+ 39. Kg4 Qc8+ 40. Kf4 Qc4+ 41. Kf3 (41. Re4 Qd5 $11) 41... Qc6+ 42. Kg4 Qc8+ 43. Kf4 Qc4+ 44. Kf3 $11 (44. Re4 Qd5 $11)) 36... Qc1 {[%emt 0:00:06]} (36... d3+ $142 37. Kd2 (37. Kxd3 $2 {loses.} Qd1+ {[%mdl 64] Skewer} 38. Kc4 Qxd6 $19) 37... Qb7) 37. Qc5 {[%emt 0:03:34] Active counter play!} ({And not} 37. Qxd4 Qxc7 38. Kf3 Rc8 $11) 37... Qb2+ {[%emt 0:00:32]} 38. Kf1 {[%emt 0:00:36][%cal Oc5f8]} Qb7 {[%emt 0:00:51]} 39. Rd5 {[%emt 0:03:08] White threatens Rd8 and mate.} ({Less strong is} 39. Qxd4 Qxc7 40. Qc5 Qb7 $14) 39... d3 {[%emt 0:00:36]} 40. Rxd3 {[%emt 0:00:41]} (40. a6 $142 Qb1+ 41. Kg2) 40... Qa6 {[%emt 0:00:32] [#]} 41. Kg1 $1 {[%emt 0:03:12] Weighted Error Value: White=0.05 (flawless) /Black=0.41} 1-0

[Event "ETCC Open 2023"]
[Site "Budva"]
[Date "2023.11.13"]
[Round "3.53"]
[White "Fedoseev, Vladimir"]
[Black "Georgiadis, Nico"]
[Result "1/2-1/2"]
[ECO "E32"]
[WhiteElo "2675"]
[BlackElo "2556"]
[Annotator "TA"]
[PlyCount "129"]
[EventDate "2023.11.10"]
[EventType "team-tourn"]
[EventCountry "MNE"]
[SourceTitle "playchess.com"]
[Source "ChessBase"]
[SourceQuality "1"]
[WhiteTeam "Slovenia"]
[BlackTeam "Switzerland"]
[WhiteTeamCountry "SLO"]
[BlackTeamCountry "SUI"]
[TimeControl "40/5400+30:1800+30"]

{[%evp 16,129,25,0,6,8,6,7,14,10,8,0,38,0,0,0,22,-39,-33,-33,0,0,0,0,0,0,0,0,0,0,0,6,62,25,20,8,33,26,112,129,159,148,159,170,173,70,84,61,86,78,65,64,95,95,95,95,95,0,0,0,0,0,0,-14,0,-18,-4,-39,-8,-16,-13,-14,0,0,0,0,0,0,0,0,0,0,0,0,0,0,0,0,0,0,0,0,0,0,0,0,0,0,0,0,0,0,0,0,0,0,0,0,0,0,0,0,0,0,0,0]} 1. d4 {[%emt 0:00:22]} Nf6 {[%emt 0:00:21]} 2. c4 {[%emt 0:00:12]} e6 {[%emt 0:00:10]} 3. Nc3 {[%emt 0:00:06]} Bb4 {[%emt 0:00:13]} 4. Qc2 {[%emt 0:00:05]} O-O {[%emt 0:00:15]} 5. a3 {[%emt 0:00:06]} Bxc3+ {[%emt 0:00:06]} 6. Qxc3 {[%emt 0:00:05]} b6 {[%emt 0:00:10]} 7. Bg5 {[%emt 0:09:27]} h6 {[%emt 0:00:07]} 8. Bh4 {[%emt 0:01:27]} Bb7 {[%emt 0:00:05] 8...Ba6 is vanishing.} 9. e3 {[%emt 0:00:26]} d6 {[%emt 0:00:35] E32: Nimzo-Indian: Classical (4 Qc2): 4...0-0.} 10. Ne2 {[%emt 0:02:23]} Nbd7 {[%emt 0:00:18]} 11. Qd3 {[%emt 0:01:52]} e5 {[%emt 0:06:32]} 12. Nc3 {[%emt 0:08:04]} exd4 {[%emt 0:15:58]} 13. Qxd4 {[%emt 0:02:36]} Re8 {[%emt 0:03:05]} 14. O-O-O {[%emt 0:11:04] [#]} g5 $146 {[%emt 0:04:37]} ({Predecessor:} 14... Qc8 15. Bxf6 Nxf6 16. f3 a5 17. Kb1 a4 18. Bd3 Nd7 19. e4 Nc5 20. g4 Ra5 {1-0 Standke,W (2523)-Schueppel,R (2541) BdF-Gold 07 email 2007}) 15. Bg3 {[%emt 0:00:48]} Ne4 {[%emt 0:17:25]} 16. Nd5 {[%emt 0:09:11]} (16. f3 $11 Ndc5 17. Kc2) 16... Ndc5 $15 {[%emt 0:02:23]} 17. Kb1 {[%emt 0:00:50]} Nb3 {[%emt 0:02:51]} (17... Bc8 $5 {[%cal Rc8f5]} 18. Ka2 Bf5 $11) 18. Qd3 {[%emt 0:00:06]} Nbc5 {[%emt 0:00:13] A dynamic duo of knights.} 19. Qe2 {[%emt 0:07:36]} c6 {[%emt 0:03:10]} 20. Nb4 {[%emt 0:00:26]} Qf6 {[%emt 0:00:56][%cal Ob6b5]} 21. f3 $1 {[%emt 0:03:25]} Nxg3 {[%emt 0:00:40]} 22. hxg3 {[%emt 0:00:05]} Rad8 {[%emt 0:11:05]} 23. g4 {[%emt 0:04:32]} Ne6 {[%emt 0:05:56]} (23... Qg6+ $1 $11 24. Nc2 Bc8) 24. Qf2 {[%emt 0:03:50]} a5 {[%emt 0:04:15]} 25. Na2 {[%emt 0:04:31]} d5 {[%emt 0:02:44]} 26. Nc3 {[%emt 0:00:27]} Kg7 {[%emt 0:02:41]} (26... Nc5 $11) 27. cxd5 $16 {[%emt 0:00:49]} cxd5 {[%emt 0:00:07]} 28. Bb5 {[%emt 0:00:03]} Re7 {[%emt 0:03:13] [#]} 29. Ne2 {[%emt 0:00:55] Threatens to win with Ng3.} Kg8 {[%emt 0:00:14]} 30. Rh3 {[%emt 0:02:37]} (30. Ng3 $18 {Nf5 is the strong threat.} Ng7 31. Rh3) 30... d4 $1 $14 {[%emt 0:01:44]} 31. exd4 {[%emt 0:01:38]} (31. Nxd4 Nxd4 32. exd4 (32. Rxd4 Be4+ 33. Ka2 Rxd4 $11) 32... Kg7 $11) 31... Be4+ {[%emt 0:02:22]} 32. Ka1 {[%emt 0:00:47][%cal Oh3h6]} (32. fxe4 $2 {too greedy.} Qxf2 33. d5 Qxg2 34. Rxh6 Qxe4+ 35. Bd3 Qf3 $19) 32... Nc5 {[%emt 0:02:47]} 33. Bc4 $1 {[%emt 0:06:49]} Bc2 {[%emt 0:03:29]} 34. Rdh1 {[%emt 0:02:57]} Nd3 {[%emt 0:02:48]} 35. Bxd3 {[%emt 0:07:58]} Bxd3 {[%emt 0:00:05] [#]} 36. Nc1 {[%emt 0:00:03]} (36. Rxh6 $2 {is the wrong capture.} Rxe2 $19) ({White should play} 36. Ng3 $1 $16 Qxd4 37. Qxd4 Rxd4 38. Rxh6) 36... Bg6 $11 {[%emt 0:01:30]} 37. Rxh6 {[%emt 0:01:31][%cal Of3f4] And now f4! would win.} Qxd4 {[%emt 0:01:16]} 38. Qxd4 {[%emt 0:04:11]} Rxd4 {[%emt 0:00:04]} 39. Rh8+ {[%emt 0:00:02][%cal Bh6h8,Bh8c8,Bc8c6,Bc6b6,Bb6b5][%mdl 32]} Kg7 {[%emt 0:00:07][%mdl 1024] Black has compensation.} 40. Rc8 {[%emt 0:01:03]} Re6 {[%emt 0:02:13]} 41. g3 {[%emt 0:32:53]} Re3 {[%emt 0:14:26]} 42. Rf1 {[%emt 0:00:00] The position is equal.} Rd2 {[%emt 0:03:33]} 43. Rc6 {[%emt 0:00:00]} Rg2 {[%emt 0:01:57]} 44. Rxb6 {[%emt 0:00:00]} Rxg3 {[%emt 0:00:23]} 45. Rb5 {[%emt 0:00:00][%csl LRa5,LRg5]} Rgxf3 {[%emt 0:05:23]} 46. Rxf3 {[%emt 0:00:00]} Rxf3 {[%emt 0:00:04]} 47. Rxg5 {[%emt 0:00:00][%mdl 4096] Endgame KRB-KRN} a4 {[%emt 0:01:31]} (47... Rf1 $5 48. Rc5 $8 Rg1 $11) 48. Rc5 {[%emt 0:00:00]} Rg3 {[%emt 0:01:28]} 49. Rc4 {[%emt 0:00:00]} Rg1 {[%emt 0:00:47]} 50. b4 {[%emt 0:00:00]} ({Much weaker is} 50. Ka2 f5 51. Rxa4 Rxc1 $15) 50... axb3 {[%emt 0:00:25]} 51. Kb2 {[%emt 0:00:00]} f6 {[%emt 0:01:12][%cal Bf7f6,Bf6f5,Bf5f4,Bf4f3][%mdl 32] aiming for ...Rg2+.} 52. Nxb3 {[%emt 0:00:00]} Rg2+ {[%emt 0:00:57]} 53. Kc1 {[%emt 0:00:00]} Bf7 {[%emt 0:00:24]} 54. Rc7 {[%emt 0:00:00]} Rxg4 {[%emt 0:00:13]} 55. Nc5 {[%emt 0:00:00]} f5 {[%emt 0:02:33]} 56. a4 {[%emt 0:00:00][%cal Ba3a4,Ba4a5,Ba5a6,Ba6a7][%mdl 32]} Rg2 {[%emt 0:01:15]} 57. a5 {[%emt 0:00:00]} Ra2 {[%emt 0:00:26]} 58. a6 {[%emt 0:00:00]} f4 {[%emt 0:00:28]} 59. Kb1 {[%emt 0:00:23]} Ra5 {[%emt 0:01:34]} 60. a7 {[%emt 0:00:09]} f3 {[%emt 0:00:15] Hoping for ...f2.} 61. Ne4 {[%emt 0:00:31]} Kg6 {[%emt 0:00:14]} 62. Rc6+ {[%emt 0:00:47]} Kg7 {[%emt 0:00:04][%cal Of7g6] White must now prevent ...Bg6!} 63. Rc7 {[%emt 0:00:03]} Kg6 {[%emt 0:00:03]} 64. Rc6+ {[%emt 0:00:04]} Kg7 {[%emt 0:00:04][%cal Of7g6] Strongly threatening ...Bg6!} 65. Rc7 {[%emt 0:00:06] Black escapes into a draw.   Weighted Error Value: White=0.09 (flawless) /Black=0.08 (flawless)} 1/2-1/2

[Event "ETCC Open 2023"]
[Site "Budva"]
[Date "2023.11.13"]
[Round "3.54"]
[White "Bogner, Sebastian"]
[Black "Subelj, Jan"]
[Result "1/2-1/2"]
[ECO "D11"]
[WhiteElo "2536"]
[BlackElo "2513"]
[Annotator "RC"]
[PlyCount "82"]
[EventDate "2023.11.10"]
[EventType "team-tourn"]
[EventCountry "MNE"]
[SourceTitle "playchess.com"]
[Source "ChessBase"]
[SourceQuality "1"]
[WhiteTeam "Switzerland"]
[BlackTeam "Slovenia"]
[WhiteTeamCountry "SUI"]
[BlackTeamCountry "SLO"]
[TimeControl "40/5400+30:1800+30"]

1. d4 {[%emt 0:00:03]} d5 {[%emt 0:00:25]} 2. c4 {[%emt 0:00:11]} c6 {[%emt 0:00:26]} 3. Nf3 {[%emt 0:00:31]} Nf6 {[%emt 0:00:19]} 4. e3 {[%emt 0:00:11]} Bg4 {[%emt 0:00:45]} 5. h3 {[%emt 0:01:49]} Bh5 {[%emt 0:00:27]} 6. Nc3 {[%emt 0:00:49]} e6 {[%emt 0:00:35]} 7. g4 {[%emt 0:06:39]} Bg6 {[%emt 0:00:09]} 8. Ne5 {[%emt 0:00:05]} Nbd7 {[%emt 0:06:56]} 9. h4 {[%emt 0:02:52]} dxc4 {[%emt 0:00:57]} 10. Nxg6 {[%emt 0:01:01]} hxg6 {[%emt 0:00:08]} 11. g5 {[%emt 0:00:31]} Nd5 {[%emt 0:02:37]} 12. Bxc4 {[%emt 0:00:05]} N7b6 {[%emt 0:07:36]} 13. Be2 {[%emt 0:01:32]} Qc7 {[%emt 0:01:46]} 14. Bd2 {[%emt 0:16:04]} Be7 {[%emt 0:14:59]} 15. f4 {[%emt 0:23:26]} O-O-O {[%emt 0:11:48]} 16. Qb3 {[%emt 0:05:17]} Kb8 {[%emt 0:14:44]} 17. Ne4 {[%emt 0:05:53]} Nc8 {[%emt 0:10:25]} 18. Bf3 {[%emt 0:08:16]} Qb6 {[%emt 0:02:33]} 19. Kf2 {[%emt 0:07:51]} Qxb3 {[%emt 0:01:32]} 20. axb3 {[%emt 0:00:02]} Bb4 {[%emt 0:00:09]} 21. Bxb4 {[%emt 0:07:37]} Nxb4 {[%emt 0:02:20]} 22. Nc5 {[%emt 0:03:05]} b6 {[%emt 0:05:34]} 23. Na6+ {[%emt 0:02:26]} Nxa6 {[%emt 0:00:06]} 24. Rxa6 {[%emt 0:00:01]} Ne7 {[%emt 0:02:23]} 25. b4 {[%emt 0:03:21]} Rd7 {[%emt 0:04:00]} 26. Ra3 {[%emt 0:01:21]} Rc8 {[%emt 0:00:59]} 27. h5 {[%emt 0:00:57]} gxh5 {[%emt 0:00:14]} 28. Rxh5 {[%emt 0:00:14]} Nd5 {[%emt 0:01:53]} 29. Rh7 {[%emt 0:00:32]} g6 {[%emt 0:00:41]} 30. Rb3 {[%emt 0:00:59]} Kc7 {[%emt 0:02:35]} 31. Bxd5 {[%emt 0:01:37]} cxd5 {[%emt 0:01:26]} 32. Rc3+ {[%emt 0:00:08]} Kb7 {[%emt 0:00:02]} 33. Rxc8 {[%emt 0:00:22]} Kxc8 {[%emt 0:00:05]} 34. b5 {[%emt 0:00:17]} Rc7 {[%emt 0:01:04]} 35. Ke2 {[%emt 0:00:52]} Kb7 {[%emt 0:02:14]} 36. Kd3 {[%emt 0:00:34]} a6 {[%emt 0:00:06]} 37. bxa6+ {[%emt 0:00:31]} Kxa6 {[%emt 0:00:03]} 38. Rh8 {[%emt 0:00:05]} Ka5 {[%emt 0:00:18]} 39. Rb8 {[%emt 0:00:45]} b5 {[%emt 0:00:17]} 40. e4 {[%emt 0:00:53]} Rd7 {[%emt 0:01:31]} 41. Rc8 {[%emt 0:10:23]} Kb4 {[%emt 0:07:50]} 1/2-1/2